Cogmind - Beta 16.1 *** ADVENTURER MODE // 2026.04.28 @ 03:13:28 Player: JitterGlitch Result: Destroyed by D-53 Grenadier with Mini Grenade Launcher Performance ------------- Evolutions (1) 500 Regions Visited (4) 800 Robots Destroyed (12) 60 Value Destroyed (231) 231 Prototype IDs (0) 0 Alien Tech Used (0) 0 Bonus (0) 0 TOTAL SCORE: 1591 Bonus ------- None Cogmind --------- Core Integrity 0/400 Matter 300/300 Energy 100/100 System Corruption 0% Temperature Cool (0) Movement Core (100) Ox1 Location -9/Mines Parts ------- > --- POWER (2) -------- (None) > --- PROPULSION (3) --- (None) > --- UTILITY (2) ------ Small Storage Unit > --- WEAPON (2) ------- (None) > --- INVENTORY (8) ---- Aluminum Leg Armor Integrity Analyzer Phase Shifter Medium Laser Beam Rifle Beam Rifle Assault Rifle Peak State ------------ > --- POWER ------------ Ion Engine Ion Engine > --- PROPULSION ------- Aluminum Leg Aluminum Leg Improved Hover Unit > --- UTILITY ---------- Heat Sink Small Storage Unit > --- WEAPON ----------- Beam Rifle Light Assault Rifle > --- INVENTORY -------- Light Treads Light Treads Medium Laser Beam Rifle Beam Rifle Assault Rifle [Rating: 11] Favorites ----------- Power Ion Engine Engine Ion Engine Propulsion Aluminum Leg Treads Light Treads Leg Aluminum Leg Hover Unit Improved Hover Unit Utility Small Storage Unit Device Heat Sink Storage Small Storage Unit Weapon Light Assault Rifle Energy Gun EM Pulse Gun Ballistic Gun Light Assault Rifle Build | -11 -10 -10 -9 -9 ------- Run | Yrd Mat Min Mat Min Slots Evolved 2 | . . . 2 . Power 1 | . . . 1 . Propulsion 1 | . . . 1 . Utility . | . . . . . Weapon . | . . . . . Parts Attached 14 | 6 . . 6 2 Power 3 | 1 . . 2 . Engine 3 | 1 . . 2 . Core . | . . . . . Reactor . | . . . . . Propulsion 5 | 2 . . 1 2 Treads 2 | . . . . 2 Leg 2 | 2 . . . . Wheel . | . . . . . Hover 1 | . . . 1 . Flight . | . . . . . Utility 2 | 1 . . 1 . Device 1 | . . . 1 . Storage 1 | 1 . . . . Processor . | . . . . . Hackware . | . . . . . Protection . | . . . . . Artifact . | . . . . . Weapon 4 | 2 . . 2 . Energy Gun 3 | 1 . . 2 . Energy Cannon . | . . . . . Ballistic Gun 1 | 1 . . . . Ballistic Cannon . | . . . . . Launcher . | . . . . . Special Weapon . | . . . . . Impact Weapon . | . . . . . Slashing Weapon . | . . . . . Piercing Weapon . | . . . . . Special Melee Weapon . | . . . . . Unidentified Prototypes . | . . . . . Parts Lost 10 | . . . 2 8 Power 3 | . . . 1 2 Propulsion 3 | . . . . 3 Utility 1 | . . . . 1 Weapon 3 | . . . 1 2 Highest Loss Streak 8 | . . . 1 8 To Critical Strikes . | . . . . . Average Backups 5 | 3 4 6 5 6 Power . | . 1 2 . . Propulsion 2 | 1 2 2 2 1 Utility . | . . . . . Weapon 2 | . 1 2 2 4 Tool/Special . | . . . . . Unused Backups 5 | . . . . 5 Power . | . . . . . Propulsion . | . . . . . Utility 2 | . . . . 2 Weapon 3 | . . . . 3 Tool/Special . | . . . . . Average Slot Usage (%) 81 | . 85 85 76 85 Engine 16 | . 14 14 18 16 Treads 3 | . . . . 19 Leg 18 | . 28 28 18 1 Hover 2 | . . . 1 7 Device 4 | . . . 5 9 Storage 12 | . 14 14 11 11 Energy Gun 11 | . 14 14 10 9 Ballistic Gun 11 | . 14 14 11 9 Peak Build Rating 11 | 6 6 6 11 11 Average Rating 7 | 4 6 6 7 9 On Entrance 5 | . 6 6 6 10 Avg Prop Armor Cover (%) 10 | . . . . 10 Naked Turns . | . . . . . Heaviest Build 20 | 13 13 13 20 20 Greatest Support 40 | 20 20 20 20 40 Greatest Overweight (x) 3 | . . . 2 3 Average Overweight (x) . | . . . . . Largest Inventory Capacity 8 | 8 8 8 8 8 Average Capacity 7 | 7 8 8 8 8 Most Carried 8 | 5 6 6 8 8 Average Carried 5 | 3 4 6 5 6 Final Capacity 8 | 8 8 8 8 8 Final Carried 8 | 4 6 6 8 7 Class Distribution -------------------- 100% | Mutant Dominant Class ---------------- Mutant | -10/Materials Mutant | -10/Mines Mutant | -9/Materials Mutant | -9/Mines Resources | -11 -10 -10 -9 -9 ----------- Run | Yrd Mat Min Mat Min Matter Collected 366 | 207 15 40 36 68 Remotely . | . . . . . Salvage Created 309 | . 15 40 208 46 Parts 20 | . . 5 9 6 Haulers Intercepted . | . . . . . Recyclers Shooed . | . . . . . Parts Field Recycled . | . . . . . Retrieved Matter . | . . . . . Parts Self-Destructed . | . . . . . Prevented . | . . . . . Parts Restored . | . . . . . Kills | -11 -10 -10 -9 -9 ------- Run | Yrd Mat Min Mat Min Combat Hostiles Destroyed 12 | . . 2 6 4 Guns 10 | . . 2 4 4 AOE 2 | . . . 2 . Classes Destroyed 4 | . 1 1 1 1 Watcher 1 | . 1 . . . Swarmer 8 | . . 2 3 3 Sentry 3 | . . . 3 . Assembled 1 | . . . . 1 Best Kill Streak 4 | . 1 2 4 3 Combat Bots Only 4 | . . 2 4 3 Max Kills in Single Turn 2 | . 1 1 2 1 Gunslinging . | . . . . . Exploded 2 | . . . 2 . Melee . | . . . . . Uniques/NPCs Destroyed . | . . . . . Combat | -11 -10 -10 -9 -9 -------- Run | Yrd Mat Min Mat Min Hostile Shots Fired 99 | . . 6 57 36 Missed 19 | . . 1 13 5 Hits 80 | . . 5 44 31 Projectile 80 | . . 5 44 31 AOE 21 | . . . . 21 Critical Strikes 3 | . . . 1 2 Damage Taken 1335 | . 21 36 452 826 Core 414 | . . 8 95 311 Absorbed by Shields . | . . . . . Ignored by Resistances 378 | . 6 10 136 226 Core Remaining (%) 98 | 100 . 96 . . Volleys Fired 31 | . 1 4 19 7 Largest 2 | . 2 2 2 2 Hottest 76 | . 60 60 70 76 Shots Fired 60 | . 2 8 37 13 Gun 60 | . 2 8 37 13 Cannon . | . . . . . Launcher . | . . . . . Special . | . . . . . Kinetic 30 | . 1 4 19 6 Thermal 21 | . . . 14 7 Explosive . | . . . . . Electromagnetic 9 | . 1 4 4 . Robot Hit Streak 22 | . 1 3 22 5 Robot Miss Streak 2 | . . 2 1 1 Penetration Max . | . . . . . Secondary Targets 2 | . . . 1 1 Max Gunslinging Chain 1 | . . . 1 1 Shots Hit Robots 47 | . 1 4 34 8 Core Hits 18 | . 1 3 10 4 Critical Kills . | . . . . . Critical Parts Destroyed . | . . . . . Critical Strikes 1 | . . . 1 . Burn 1 | . . . 1 . Melee Attacks . | . . . . . Impact . | . . . . . Slashing . | . . . . . Piercing . | . . . . . Sneak Attacks . | . . . . . Combat Hostiles . | . . . . . Follow-up Attacks . | . . . . . Damage Inflicted 591 | . 20 39 438 94 Guns 504 | . 20 39 351 94 Cannons . | . . . . . Explosions 85 | . . . 85 . Melee . | . . . . . Ramming 2 | . . . 2 . Kinetic 170 | . . 7 140 23 Thermal 334 | . . . 263 71 Explosive . | . . . . . Electromagnetic 85 | . 20 32 33 . Impact . | . . . . . Slashing . | . . . . . Piercing . | . . . . . Highest Corruption . | . . . . . Average Corruption . | . . . . . Corruption Purged . | . . . . . Corruption Blocked . | . . . . . Overload Shots . | . . . . . Overflow Damage . | . . . . . Projectiles . | . . . . . Explosions . | . . . . . Melee . | . . . . . Knockbacks . | . . . . . Impact . | . . . . . Kinetic . | . . . . . Secondary . | . . . . . Self-Inflicted Damage 20 | . . . 20 . Shots 1 | . . . 1 . Rammed . | . . . . . Targets Rammed 1 | . . . 1 . Kicked 1 | . . . 1 . Crushed . | . . . . . Highest Temperature 223 | . 20 40 223 30 Average Temperature 69 | . 10 25 95 15 Received Heat Transfer 144 | . . . 144 . Siege Activations . | . . . . . Martial Activations . | . . . . . Shielding Activations . | . . . . . Robots Disrupted . | . . . . . Combat Hostiles . | . . . . . Robots Corrupted . | . . . . . Combat Hostiles . | . . . . . Parts Fried . | . . . . . Impact Corruptions . | . . . . . Robots Melted . | . . . . . Combat Hostiles . | . . . . . Parts Melted 1 | . . . 1 . Heat Transferred 877 | . . . 692 185 Parts Sabotaged . | . . . . . Parts Stolen . | . . . . . Parts Stripped . | . . . . . Power Chain Reactions 1 | . . . 1 . Alert | -11 -10 -10 -9 -9 ------- Run | Yrd Mat Min Mat Min Maximum Alert Level . | . . . . . Low Security (%) 100 | 100 100 100 100 100 Level 1 . | . . . . . Level 2 . | . . . . . Level 3 . | . . . . . Level 4 . | . . . . . Level 5 . | . . . . . High Security . | . . . . . Max Security . | . . . . . Peak Influence 100 | . 7 65 100 79 Initial 14 | . . . 14 9 Average 33 | . 1 12 55 40 Influence Increases 312 | . 11 65 166 70 Destroy 0b10 Robot/C 220 | . . 40 120 60 Destroy 0b10 Robot/NC 5 | . 5 . . . Destroy Leader 62 | . 2 10 40 10 Successful Hack 4 | . 4 . . . Destroy Structure 6 | . . . 6 . Lose Combat Pursuer 15 | . . 15 . . Influence Decreases 312 | . 11 20 181 100 Entered New Map 52 | . . . 31 21 Time Decay 211 | . 11 20 130 50 Lost Part 49 | . . . 20 29 Squads Dispatched . | . . . . . Investigation . | . . . . . Extermination . | . . . . . Reinforcement . | . . . . . Assault . | . . . . . Garrison . | . . . . . Intercept . | . . . . . Searches Triggered . | . . . . . Construction Impeded . | . . . . . Haulers Reinforced . | . . . . . Active Scanning Responses . | . . . . . Cargo Convoy Interrupts . | . . . . . Stealth | -11 -10 -10 -9 -9 --------- Run | Yrd Mat Min Mat Min Distress Signals . | . . . . . Communications Jammed . | . . . . . Distress Signals . | . . . . . Times Spotted 16 | . 1 2 6 7 Peak Tracking Total 4 | . 1 3 4 3 Tactical Retreats 1 | . . 1 . . Traps | -11 -10 -10 -9 -9 ------- Run | Yrd Mat Min Mat Min Traps Triggered 2 | . 1 . 1 . Indirectly . | . . . . . Trap Hack Attempts . | . . . . . Triggered . | . . . . . Disarmed . | . . . . . Reprogrammed . | . . . . . Reused . | . . . . . Traps Extracted . | . . . . . Installed . | . . . . . Triggered . | . . . . . Machines | -11 -10 -10 -9 -9 ---------- Run | Yrd Mat Min Mat Min Machines Disabled . | . . . . . Max in Single Turn . | . . . . . Machines Repaired . | . . . . . Machines Dismantled . | . . . . . Machines Sabotaged . | . . . . . Overloaded Fab Kills . | . . . . . Hacking | -11 -10 -10 -9 -9 --------- Run | Yrd Mat Min Mat Min Machines Accessed 1 | . 1 . . . Terminals 1 | . 1 . . . Fabricators . | . . . . . Repair Stations . | . . . . . Recycling Units . | . . . . . Scanalyzers . | . . . . . Garrison Access . | . . . . . Total Hacks 2 | . 2 . . . Successful 1 | . 1 . . . Failed 1 | . 1 . . . Catastrophic . | . . . . . Database Lockouts . | . . . . . Manual . | . . . . . Terminals 2 | . 2 . . . Fabricators . | . . . . . Repair Stations . | . . . . . Recycling Units . | . . . . . Scanalyzers . | . . . . . Garrison Access . | . . . . . Terminal Hacks 1 | . 1 . . . Zone Layout 1 | . 1 . . . Fabricator Hacks . | . . . . . Repair Station Hacks . | . . . . . Recycling Unit Hacks . | . . . . . Scanalyzer . | . . . . . Garrison Access Hacks . | . . . . . Unauthorized Hacks . | . . . . . Terminals . | . . . . . Fabricators . | . . . . . Repair Stations . | . . . . . Recycling Units . | . . . . . Scanalyzers . | . . . . . Garrison Access . | . . . . . Data Cores Recovered . | . . . . . Used . | . . . . . Hacking Detections 1 | . 1 . . . Full Trace Events . | . . . . . Feedback Events . | . . . . . Feedback Blocked . | . . . . . Robot Schematics Acquired . | . . . . . Robots Built . | . . . . . Authchips . | . . . . . Time . | . . . . . Total Robot Build Rating . | . . . . . Part Schematics Acquired . | . . . . . Parts Built . | . . . . . Authchips . | . . . . . Time . | . . . . . Total Part Build Rating . | . . . . . Part Studies Acquired . | . . . . . Parts Repaired . | . . . . . Time . | . . . . . Parts Recycled . | . . . . . Recycled Matter . | . . . . . Retrieved Matter . | . . . . . Retrieved Components . | . . . . . Parts Scanalyzed . | . . . . . Part Schematics Acquired . | . . . . . Parts Damaged . | . . . . . Bothacking | -11 -10 -10 -9 -9 ------------ Run | Yrd Mat Min Mat Min Used RIF Installer . | . . . . . Robots Hacked . | . . . . . Non-combat . | . . . . . Combat . | . . . . . Robot Hacks Applied . | . . . . . Relay Couplers Released . | . . . . . Fabnet Peak Effective % . | . . . . . Robots Rewired . | . . . . . Allies Hacked . | . . . . . Hacks Repelled . | . . . . . Allies | -11 -10 -10 -9 -9 -------- Run | Yrd Mat Min Mat Min Total Allies . | . . . . . Largest Group . | . . . . . Highest-Rated Group . | . . . . . Highest-Rated Ally . | . . . . . Total Orders . | . . . . . Ally Attacks . | . . . . . Total Damage . | . . . . . Kills . | . . . . . Allies Corrupted . | . . . . . Allies Melted . | . . . . . Intel | -11 -10 -10 -9 -9 ------- Run | Yrd Mat Min Mat Min Active Infowar (turns) . | . . . . . Robot Analysis Total . | . . . . . Derelict Logs Recovered . | . . . . . Drone Launches . | . . . . . Drone Recoveries . | . . . . . Exploration | -11 -10 -10 -9 -9 ------------- Run | Yrd Mat Min Mat Min Turns Passed 664 | 55 65 144 275 125 Spaces Moved 411 | 39 51 111 158 52 Core 14 | 10 . . . 4 Treads 39 | . . . . 39 Legs 338 | 29 51 111 138 9 Wheels . | . . . . . Hover 20 | . . . 20 . Flight . | . . . . . Fastest Speed 50 | 50 120 120 120 160 Average Speed 127 | 102 120 120 127 168 Slowest Speed 200 | 120 120 120 180 200 Overloaded Moves . | . . . . . Propulsion Burnouts . | . . . . . Robots Hopped . | . . . . . Potential Cave-ins . | . . . . . Cave-ins Triggered . | . . . . . Exploration Rate (%) 20 | 5 15 46 19 16 Regions Visited 4 Branch Regions 2 Pre-discovered Areas . | . . . . . Known Exits Taken . | . . . . . Unknown Exits Taken 4 | 1 1 1 1 . Scrap Searched . | . . . . . Spaces Dug . | . . . . . Terrain Destroyed 5 | . . . 5 . Melee . | . . . . . Projectile . | . . . . . AOE 5 | . . . 5 . Terrain Rammed . | . . . . . Walls Destroyed . | . . . . . Machines Disabled . | . . . . . Actions | -11 -10 -10 -9 -9 --------- Run | Yrd Mat Min Mat Min Total 498 | 54 53 114 199 78 Wait 22 | . . . 9 13 Move 407 | 38 50 110 157 52 Hop . | . . . . . Pick Up 19 | 10 2 . 5 2 Fast Attach . | . . . . . Attach 14 | 6 . . 5 3 Detach 2 | . . . 2 . Swap 1 | . . . 1 . Drop 1 | . . . . 1 Fire 31 | . 1 4 19 7 Melee . | . . . . . Ram . | . . . . . Kick 1 | . . . 1 . Crush . | . . . . . Escape Stasis . | . . . . . Rewire . | . . . . . Trap . | . . . . . Miscellaneous . | . . . . . Route ------- -11/Scrapyard -10/Materials -10/Mines -9/Materials -9/Mines History --------- Turn | Location | Event 3 | -11/Scrapyard | Discovered new exit (range 15) 56 | -11/Scrapyard | Entered Materials 70 | -10/Materials | Discovered new exit (range 17) 121 | -10/Materials | Entered Mines 256 | -10/Mines | Discovered new exit (range 7) 265 | -10/Mines | Entered Materials 265 | -9/Materials | Evolved 2 slots: Power x1, Propulsion x1 304 | -9/Materials | Build established: Mutant 513 | -9/Materials | Discovered new exit (range 16) 540 | -9/Materials | Entered Mines 564 | -9/Mines | Assembled infested the area 569 | -9/Mines | Assisted by a Guerilla fighting off Assembled 655 | -9/Mines | Core integrity fell below 50% 660 | -9/Mines | Core integrity fell below 20% 665 | -9/Mines | Destroyed by D-53 Grenadier with Mini Grenade Launcher Last Messages --------------- as-78461 destroyed. Acquired Phase Shifter. Acquired Armor Integrity Analyzer. Dropped Imp. Hover Unit. Acquired 39 matter. R-06 Scavenger collects Targeting Computer. Heat Sink destroyed. Lgt. Assault Rifle destroyed. Aluminum Leg destroyed. Beam Rifle destroyed. The unstable cave ceiling collapses. Lgt. Treads destroyed. Ion Engine destroyed. The unstable cave ceiling collapses. Lgt. Treads destroyed. The unstable cave ceiling collapses. U-05 Engineer lays Concrete. The unstable cave ceiling collapses. U-05 Engineer lays Concrete. The unstable cave ceiling collapses. Map ----- +----------------------------------------------------+ | ?????????????????????????????????????? | | ?????????????????????????????????????? | | ?????????????????????????????????????? | | ?????????????????????????????????????? | | ?????????????????????????????????????? | | ?????????????????????????????????????? | | ?????????????????????????????????????? | | ?????????????????????????????????????? | | ?????????????????????????????????????? | | ?????????????????????????????????????? | | ???????????????????????????? ????? | | ??????????????????????????? ??? | | ?????????????????????????## ## ? | | ????????????????????????## # #? | | ??????????????????????### # u #? | | ??????????????????????? # # #? | | ???????????????????????# # #? | | ???????????????????????# #? | | ???????????????????????? #?? | | ???????????????????????? < dd #??? | | ??????????????????????### #???? | | ?????????????????????## ##???? | | ????????????????????## # ##??? | | ?????????????######## # #??? | | ?????????????? #??? | | ????????????????????# @ #??? | | ??????????????????### #??? | | ?????????????????## # #??? | | ?????????????????# # #??? | | ?????????????????# # ##??? | | ?????????????????# # %%#???? | | ????????????????## #### =% ;%#?? | | ???????????????## #### ### ####?? | | ????????????#### $ #?# #????? | | ???????????## #?# #????? | | ???????????# #########?# ????? | | ???????????## #?????????###????? | | ????????????##### ##????########????? | | ????????????????## #?????#[ #????? | | ?????????????????# #??####%*""" #????? | | ?????????????????# #??# = """ ### #? | | ?????????????????# #### ## [""" #? | | ?????????????????# ## [####?? | | ?????????????????# ####### * #????? | | ?????????????????# #?????# #????? | | ????????????????? #?????########????? | | ????????????????####?????????????????? | | ?????????????????????????????????????? | | ?????????????????????????????????????? | | ?????????????????????????????????????? | +----------------------------------------------------+ Best States ------------- Heat Dissipation 38 Energy Generation 15 Energy Capacity 400 Matter Stores 300 Matter Capacity 300 Sight Range 16 Terrain Scan Density 10 Resistance: KI 20 Resistance: TH 20 Resistance: EX 20 Resistance: EM 20 Resistance: I 20 Resistance: S 20 Resistance: P 20 Evasion (%) 55 Recoil Reduction 2 Offensive Hacking 10 Item Schematics ----------------- None Robot Schematics ------------------ None Fabricated ------------ Nothing Repaired ---------- Nothing Studied --------- None Alien Tech Used ----------------- None Achievements -------------- None Challenges ------------ None Game ------ Seed PlexusLargeMindspike Manual? 0 Play Time 00:11:07 Cumulative 17.0 hours Start 2026.04.28 @ 03:03:47 End 2026.04.28 @ 03:13:28 Sessions 1 Manual Loads 0 Difficulty Adventurer Special Mode None Game No. 24 Rogue 0 Adventurer 24 Explorer 0 Win Type - Total 0 Types 0/0/0/0/0/0/0/0/0/0 Lore% 11 Gallery% 22 Achievement% 13 Wizard Run 0 Options --------- Layout 1 ASCII 0 Keyboard 0 Movement Mouse Keybinds 0 Fullscreen 1 Font 32/Cog Map View 50x35 Zoom Use 0% Tactical HUD 0 Map Filters NONE Filters NONE Steam 1 RUN: 0dd3beff-8c16-47b0-9882-371d7f534830